Cogmind - Beta 14 @@@ ROGUE MODE // 2024.08.23 @ 23:28:22 Player: THN-L0C Result: Destroyed by Y-54 Guardian with Gatling Laser Performance ------------- Evolutions (0) 0 Regions Visited (4) 800 Robots Destroyed (39) 195 Value Destroyed (838) 838 Prototype IDs (0) 0 Alien Tech Used (0) 0 Bonus (0) 0 TOTAL SCORE: 1833 Bonus ------- None Cogmind --------- Core Integrity 0/250 Matter 278/300 Energy 250/250 System Corruption 2% Temperature Cool (48) Movement Treading (160) Location -7/Recycling Parts ------- > --- POWER (1) -------- Ion Engine > --- PROPULSION (2) --- Light Treads Spiked Treads > --- UTILITY (2) ------ Medium Storage Unit Makeshift Light Armor Plating > --- WEAPON (2) ------- Slug Cannon Makeshift Spear > --- INVENTORY (10) --- Light Ion Engine Compact Matter Pod (150) Structural Scanner Improved Terrain Scanner Scrap Shield Heavy Riot Gun Rocket Launcher Heavy Rocket Launcher Multitool Peak State ------------ > --- POWER ------------ Ion Engine > --- PROPULSION ------- Spiked Treads Spiked Treads > --- UTILITY ---------- Medium Storage Unit Makeshift Light Armor Plating > --- WEAPON ----------- Heavy Riot Gun Barrage Gun > --- INVENTORY -------- Light Treads Compact Matter Pod Structural Scanner Improved Terrain Scanner Scrap Shield Slug Cannon Rocket Launcher Multitool Makeshift Spear [Rating: 19] Favorites ----------- Power Ion Engine Engine Ion Engine Propulsion Light Treads Treads Light Treads Utility Medium Storage Unit Device Improved Terrain Scanner Storage Medium Storage Unit Protection Makeshift Light Armor Plating Weapon Makeshift Spear Energy Gun Heavy Riot Gun Energy Cannon Light EM Pulse Cannon Ballistic Gun Barrage Gun Ballistic Cannon Slug Cannon Launcher Grenade Launcher Special Weapon Multitool Piercing Weapon Makeshift Spear Build | -11 -10 -10 -10 -7 ------- Run | Yrd Mat Min Sub Rec Slots Evolved . | . . . . . Power . | . . . . . Propulsion . | . . . . . Utility . | . . . . . Weapon . | . . . . . Parts Attached 47 | 8 1 4 27 7 Power 5 | 1 . 1 3 . Engine 5 | 1 . 1 3 . Core . | . . . . . Reactor . | . . . . . Propulsion 8 | 2 . 1 5 . Treads 8 | 2 . 1 5 . Leg . | . . . . . Wheel . | . . . . . Hover . | . . . . . Flight . | . . . . . Utility 12 | 3 1 . 5 3 Device 6 | 2 . . 3 1 Storage 3 | 1 1 . . 1 Processor . | . . . . . Hackware . | . . . . . Protection 3 | . . . 2 1 Artifact . | . . . . . Weapon 22 | 2 . 2 14 4 Energy Gun 3 | 1 . 1 1 . Energy Cannon 1 | . . . . 1 Ballistic Gun 6 | 1 . 1 4 . Ballistic Cannon 3 | . . . 3 . Launcher 5 | . . . 4 1 Special Weapon 1 | . . . 1 . Impact Weapon . | . . . . . Slashing Weapon . | . . . . . Piercing Weapon 3 | . . . 1 2 Special Melee Weapon . | . . . . . Unidentified Prototypes . | . . . . . Parts Lost 3 | . . . 3 . Power 1 | . . . 1 . Propulsion 1 | . . . 1 . Utility . | . . . . . Weapon 1 | . . . 1 . Highest Loss Streak 3 | . . . 3 . To Critical Strikes . | . . . . . Average Slot Usage (%) 98 | . 100 100 97 100 Engine 13 | . 14 14 13 14 Treads 27 | . 28 28 27 28 Device 13 | . 14 14 13 14 Storage 14 | . 14 14 14 14 Energy Gun 9 | . 14 14 9 . Ballistic Gun 6 | . 14 14 6 . Ballistic Cannon 3 | . . . 1 14 Launcher 3 | . . . 5 . Piercing Weapon 5 | . . . 5 13 Peak Build Rating 19 | 7 7 11 19 19 Average Rating 14 | 5 7 8 15 17 On Entrance 8 | . 7 7 11 18 Naked Turns . | . . . . . Heaviest Build 28 | 12 17 24 28 25 Greatest Support 40 | 40 40 40 40 40 Greatest Overweight (x) 1 | . . . 1 . Average Overweight (x) . | . . . . . Largest Inventory Capacity 10 | 8 10 10 10 10 Average Capacity 9 | 7 9 10 10 10 Most Carried 10 | 2 7 10 10 10 Average Carried 8 | 1 6 8 9 8 Final Capacity 10 | 8 10 10 10 10 Final Carried 10 | 2 7 10 8 10 Class Distribution -------------------- 85% | Mutant 11% | Scavenger-Mutant 3% | Derelict-Mutant Dominant Class ---------------- Mutant | -10/Materials Mutant | -10/Mines Mutant | -10/Subcaves Mutant | -7/Recycling Resources | -11 -10 -10 -10 -7 ----------- Run | Yrd Mat Min Sub Rec Matter Collected 1285 | 287 19 62 636 281 Remotely 12 | 12 . . . . Salvage Created 1751 | 159 112 109 557 814 Parts 87 | 10 9 12 30 26 Haulers Intercepted . | . . . . . Recyclers Shooed 2 | . . 1 . 1 Parts Field Recycled . | . . . . . Retrieved Matter . | . . . . . Parts Self-Destructed 12 | . . . 12 . Prevented . | . . . . . Kills | -11 -10 -10 -10 -7 ------- Run | Yrd Mat Min Sub Rec Combat Hostiles Destroyed 24 | . 4 4 16 . Melee 1 | . . . 1 . Guns 13 | . 4 3 6 . Cannons 1 | . . . 1 . AOE 9 | . . 1 8 . Classes Destroyed 7 | 2 3 . 1 1 Worker 1 | . 1 . . . Builder 1 | . . . . 1 Tunneler 3 | 3 . . . . Recycler 10 | 1 . . . 9 Swarmer 7 | . 3 3 1 . Grunt 2 | . 1 1 . . Subdweller 15 | . . . 15 . Best Kill Streak 5 | 2 5 3 3 5 Combat Bots Only 4 | . 4 3 3 . Max Kills in Single Turn 1 | 1 1 1 1 1 Gunslinging . | . . . . . Exploded 1 | . . 1 1 . Melee 1 | . . . 1 . Uniques/NPCs Destroyed . | . . . . . Combat | -11 -10 -10 -10 -7 -------- Run | Yrd Mat Min Sub Rec Hostile Shots Fired 110 | . 18 28 52 12 Missed 36 | . 7 9 12 8 Damage Taken 1190 | . 106 192 863 29 Core 260 | . 12 58 178 12 Absorbed by Shields . | . . . . . Core Remaining (%) 100 | 100 . . . . Volleys Fired 111 | 10 9 14 60 18 Largest 2 | 2 2 2 2 1 Hottest 88 | 60 60 60 88 48 Shots Fired 173 | 20 18 28 88 19 Gun 120 | 20 18 28 54 . Cannon 39 | . . . 20 19 Launcher 14 | . . . 14 . Special . | . . . . . Kinetic 102 | 10 9 14 50 19 Thermal 4 | . . . 4 . Explosive 14 | . . . 14 . Electromagnetic 53 | 10 9 14 20 . Robot Hit Streak 20 | 16 4 7 20 1 Robot Miss Streak 3 | 2 3 3 2 2 Penetration Max . | . . . . . Secondary Targets 1 | . . 1 . . Max Gunslinging Chain 1 | . . 1 . . Shots Hit Robots 114 | 17 9 17 56 15 Core Hits 60 | 6 6 7 32 9 Critical Kills . | . . . . . Critical Parts Destroyed . | . . . . . Critical Strikes . | . . . . . Melee Attacks 22 | . . . 4 18 Impact . | . . . . . Slashing . | . . . . . Piercing 22 | . . . 4 18 Sneak Attacks 12 | . . . . 12 Combat Hostiles . | . . . . . Follow-up Attacks . | . . . . . Damage Inflicted 2764 | 184 83 247 1409 841 Guns 965 | 179 83 184 519 . Cannons 122 | . . . 72 50 Explosions 821 | . . 58 763 . Melee 846 | . . . 55 791 Ramming 10 | 5 . 5 . . Kinetic 528 | 62 33 59 324 50 Thermal 88 | . . 58 30 . Explosive 763 | . . . 763 . Electromagnetic 529 | 117 50 125 237 . Impact . | . . . . . Slashing . | . . . . . Piercing 846 | . . . 55 791 Highest Corruption 2 | . 2 2 2 2 Average Corruption 2 | . 2 2 2 2 Corruption Purged . | . . . . . Corruption Blocked . | . . . . . Effects 68 | . 3 11 48 6 Message Errors 19 | . 1 3 14 1 Matter Fused 17 | . . 3 14 . Heat Flow Errors 8 | . . . 7 1 Energy Discharges 10 | . 2 1 5 2 Data Loss (minor) 9 | . . 2 6 1 Data Loss (major) 2 | . . 1 1 . Misfires 2 | . . . 1 1 Alerts 1 | . . 1 . . Overload Shots . | . . . . . Overflow Damage 91 | . . . . 91 Projectiles . | . . . . . Explosions . | . . . . . Melee 91 | . . . . 91 Knockbacks 3 | . . . 2 1 Impact . | . . . . . Kinetic 3 | . . . 2 1 Secondary . | . . . . . Self-Inflicted Damage 28 | . . . 28 . Shots 2 | . . . 2 . Rammed 3 | 2 . 1 . . Targets Rammed 3 | 2 . 1 . . Kicked . | . . . . . Crushed . | . . . . . Highest Temperature 239 | 40 40 106 215 239 Average Temperature 37 | 17 20 43 38 46 Received Heat Transfer 198 | . 24 66 96 12 Siege Activations . | . . . . . Robots Corrupted . | . . . . . Combat Hostiles . | . . . . . Parts Fried . | . . . . . Impact Corruptions . | . . . . . Robots Melted . | . . . . . Combat Hostiles . | . . . . . Parts Melted . | . . . . . Heat Transferred 174 | . . 100 74 . Parts Sabotaged . | . . . . . Parts Stolen . | . . . . . Parts Stripped . | . . . . . Power Chain Reactions 1 | . . 1 . . Alert | -11 -10 -10 -10 -7 ------- Run | Yrd Mat Min Sub Rec Peak Influence 163 | 20 148 163 . 38 Initial 57 | . 13 57 . . Average 24 | 8 37 37 . 10 Maximum Alert Level . | . . . . . Low Security (%) 100 | 100 100 100 . 100 Level 1 . | . . . . . Level 2 . | . . . . . Level 3 . | . . . . . Level 4 . | . . . . . Level 5 . | . . . . . High Security . | . . . . . Max Security . | . . . . . Squads Dispatched 1 | . 1 . . . Investigation . | . . . . . Extermination . | . . . . . Reinforcement 1 | . 1 . . . Assault . | . . . . . Garrison . | . . . . . Intercept . | . . . . . Searches Triggered . | . . . . . Construction Impeded . | . . . . . Haulers Reinforced . | . . . . . Active Scanning Responses . | . . . . . Cargo Convoy Interrupts . | . . . . . Stealth | -11 -10 -10 -10 -7 --------- Run | Yrd Mat Min Sub Rec Distress Signals 1 | . . . . 1 Communications Jammed . | . . . . . Distress Signals . | . . . . . Times Spotted 33 | . 6 5 21 1 Peak Tracking Total 6 | . 3 3 6 1 Tactical Retreats . | . . . . . Traps | -11 -10 -10 -10 -7 ------- Run | Yrd Mat Min Sub Rec Traps Triggered 3 | . 1 . 2 . Indirectly . | . . . . . Trap Hack Attempts . | . . . . . Triggered . | . . . . . Disarmed . | . . . . . Reprogrammed . | . . . . . Reused . | . . . . . Traps Extracted . | . . . . . Installed . | . . . . . Triggered . | . . . . . Machines | -11 -10 -10 -10 -7 ---------- Run | Yrd Mat Min Sub Rec Machines Disabled . | . . . . . Max in Single Turn . | . . . . . Machines Repaired . | . . . . . Machines Dismantled . | . . . . . Machines Sabotaged . | . . . . . Overloaded Fab Kills . | . . . . . Hacking | -11 -10 -10 -10 -7 --------- Run | Yrd Mat Min Sub Rec Machines Accessed 2 | . . . . 2 Terminals 2 | . . . . 2 Fabricators . | . . . . . Repair Stations . | . . . . . Recycling Units . | . . . . . Scanalyzers . | . . . . . Garrison Access . | . . . . . Total Hacks 5 | . . . . 5 Successful 1 | . . . . 1 Failed 4 | . . . . 4 Catastrophic 3 | . . . . 3 Database Lockouts . | . . . . . Manual . | . . . . . Terminals 5 | . . . . 5 Fabricators . | . . . . . Repair Stations . | . . . . . Recycling Units . | . . . . . Scanalyzers . | . . . . . Garrison Access . | . . . . . Terminal Hacks 1 | . . . . 1 Zone Layout 1 | . . . . 1 Fabricator Hacks . | . . . . . Repair Station Hacks . | . . . . . Recycling Unit Hacks . | . . . . . Scanalyzer . | . . . . . Garrison Access Hacks . | . . . . . Unauthorized Hacks . | . . . . . Terminals . | . . . . . Fabricators . | . . . . . Repair Stations . | . . . . . Recycling Units . | . . . . . Scanalyzers . | . . . . . Garrison Access . | . . . . . Data Cores Recovered . | . . . . . Used . | . . . . . Hacking Detections 2 | . . . . 2 Full Trace Events 1 | . . . . 1 Feedback Events . | . . . . . Feedback Blocked . | . . . . . Robot Schematics Acquired . | . . . . . Robots Built . | . . . . . Authchips . | . . . . . Time . | . . . . . Total Robot Build Rating . | . . . . . Part Schematics Acquired . | . . . . . Parts Built . | . . . . . Authchips . | . . . . . Time . | . . . . . Total Part Build Rating . | . . . . . Parts Repaired . | . . . . . Time . | . . . . . Parts Recycled . | . . . . . Recycled Matter . | . . . . . Retrieved Matter . | . . . . . Retrieved Components . | . . . . . Parts Scanalyzed . | . . . . . Part Schematics Acquired . | . . . . . Parts Damaged . | . . . . . Bothacking | -11 -10 -10 -10 -7 ------------ Run | Yrd Mat Min Sub Rec Used RIF Installer . | . . . . . Robots Hacked . | . . . . . Non-combat . | . . . . . Combat . | . . . . . Robot Hacks Applied . | . . . . . Relay Couplers Released . | . . . . . Fabnet Peak Effective % . | . . . . . Robots Rewired . | . . . . . Allies Hacked . | . . . . . Hacks Repelled . | . . . . . Allies | -11 -10 -10 -10 -7 -------- Run | Yrd Mat Min Sub Rec Total Allies . | . . . . . Largest Group . | . . . . . Highest-Rated Group . | . . . . . Highest-Rated Ally . | . . . . . Total Orders . | . . . . . Ally Attacks . | . . . . . Total Damage . | . . . . . Kills . | . . . . . Allies Corrupted . | . . . . . Allies Melted . | . . . . . Intel | -11 -10 -10 -10 -7 ------- Run | Yrd Mat Min Sub Rec Robot Analysis Total . | . . . . . Derelict Logs Recovered 3 | . . 2 1 . Drone Launches . | . . . . . Drone Recoveries . | . . . . . Exploration | -11 -10 -10 -10 -7 ------------- Run | Yrd Mat Min Sub Rec Turns Passed 5748 | 179 251 880 3624 814 Spaces Moved 2752 | 86 137 518 1556 455 Core 4 | 4 . . . . Treads 2748 | 82 137 518 1556 455 Legs . | . . . . . Wheels . | . . . . . Hover . | . . . . . Flight . | . . . . . Fastest Speed 50 | 50 160 160 160 160 Average Speed 159 | 154 160 160 160 160 Slowest Speed 260 | 160 160 160 260 160 Overloaded Moves . | . . . . . Propulsion Burnouts . | . . . . . Robots Hopped . | . . . . . Cave-ins Triggered . | . . . . . Exploration Rate (%) 56 | 5 39 92 87 59 Regions Visited 4 Branch Regions 3 Pre-discovered Areas 2 | . . 1 1 . Known Exits Taken . | . . . . . Unknown Exits Taken 4 | 1 1 1 1 . Scrap Searched 9 | . . 1 8 . Spaces Dug 20 | . . . 9 11 Terrain Destroyed 92 | . . 6 73 13 Melee 6 | . . . 2 4 Projectile 16 | . . . 7 9 AOE 70 | . . 6 64 . Terrain Rammed . | . . . . . Walls Destroyed . | . . . . . Machines Disabled . | . . . . . Actions | -11 -10 -10 -10 -7 --------- Run | Yrd Mat Min Sub Rec Total 3903 | 109 153 545 2594 502 Wait 924 | 2 1 1 920 . Move 2748 | 85 136 517 1555 455 Hop . | . . . . . Pick Up 25 | 2 5 4 11 3 Fast Attach 8 | 7 . . 1 . Attach 3 | . . . 3 . Detach . | . . . . . Swap 36 | 1 1 4 23 7 Drop 23 | . 1 4 17 1 Fire 111 | 10 9 14 60 18 Melee 22 | . . . 4 18 Ram . | . . . . . Kick . | . . . . . Crush 3 | 2 . 1 . . Escape Stasis . | . . . . . Rewire . | . . . . . Trap . | . . . . . Miscellaneous . | . . . . . Route ------- -11/Scrapyard -10/Materials -10/Mines (discovered 3 exits: [*Mat x2] / [*Sub]) -10/Subcaves (discovered 3 exits: [*Mat x2] / *Rec) -7/Recycling (discovered 1 exit: [*Fac]) History --------- Turn | Location | Event 10 | -11/Scrapyard | Discovered new exit (range 15) 180 | -11/Scrapyard | Entered Materials 302 | -10/Materials | Build established: Mutant 420 | -10/Materials | Discovered new exit (range 7) 431 | -10/Materials | Entered Mines 509 | -10/Mines | Discovered new exit (range 9) 970 | -10/Mines | Discovered new exit (range 10) 976 | -10/Mines | Received a Rocket Launcher from a helpful Derelict 1046 | -10/Mines | Joined a pair of Derelicts in attacking an 0b10 outpost 1124 | -10/Mines | Learned location of Zion (-6) 1290 | -10/Mines | Discovered new exit (range 6) 1311 | -10/Mines | Entered Subcaves 1355 | -10/Subcaves | Build established: Scavenger-Mutant 1415 | -10/Subcaves | Shifting Twisted Machinery released Battle Rifle 1924 | -10/Subcaves | Discovered new exit (range 16) 1931 | -10/Subcaves | A swath of the cavern ceiling suddenly collapsed 1963 | -10/Subcaves | Shifting Twisted Machinery released Hvy. Riot Gun 1966 | -10/Subcaves | Shifting Twisted Machinery released Sub. Monowheel 2018 | -10/Subcaves | Build established: Mutant 2032 | -10/Subcaves | A swath of the cavern ceiling suddenly collapsed 2068 | -10/Subcaves | Disturbed a concealed Subdweller 2082 | -10/Subcaves | Core integrity fell below 50% 2651 | -10/Subcaves | Shifting Twisted Machinery released Shrapnel Trap 2762 | -10/Subcaves | Disturbed a concealed Subdweller 3456 | -10/Subcaves | Discovered new exit (range 7) 3531 | -10/Subcaves | Core integrity fell below 20% 3585 | -10/Subcaves | Lost 3 parts (1p1n1w) 4824 | -10/Subcaves | Discovered new exit (range 9) 4935 | -10/Subcaves | Entered Recycling 5368 | -7/Recycling | Discovered new exit (range 5) 5749 | -7/Recycling | Destroyed by Y-54 Guardian with Gatling Laser Last Messages --------------- 05500_ R-06 Scavenger collects Wheel. 05504_ R-06 Scavenger collects Com. Wheel. 05507_ R-06 Scavenger collects Lgt. Ion Engine. 05511_ R-06 Scavenger collects Com. Wheel. 05525_ R-06 Scavenger collects Power Maul. 05550_ U,GBF7AXO0274F=OFAORX1 :V:X1Q L 05559_ Acquired 2 matter. 05688_ Sneak attack on R-06 Scavenger. 05688_ R-06 Scavenger destroyed. 05693_ Acquired 6 matter. 05693_ U-05 Engineer builds a Wall. 05695_ Acquired 6 matter. 05698_ Slug penetrates Wall. 05699_ Acquired 6 matter. 05702_ R-06 Scavenger collects Com. Wheel. 05703_ Acquired 6 matter. 05706_ R-06 Scavenger collects Lgt. Ion Engine. 05740_ Sneak attack on U-05 Engineer. 05740_ Destroyed Wheel. 05741_ U-05 Engineer sends out distress signal. Map ----- +----------------------------------------------------+ | ?????????????????????????????????# """ "" #?#??# | | ??????????????????????????#??????# """ #????# | | ?????????????????????????????????# """ #????? | | ?????????????????????????????????# ###### | | ?????????????????????????????????# ##"""# | | ????????????????????????????????######+######"Y"# | | ??????????????????????????????#?# | | ?????????????????????????? ?#??## | | ??????????????????????????? ????# | | ???????????????????????? ???????######+##+####### | | ??????????????????????????? ?????# #????? | | ?????????????????????????????????# """ "" #?#?#? | | ?????????????????????????????????# """ "" #???## | | ????????????????????????"???#???## """ T" #????# | | ??????????#?????? ?????""????????# """ !"" ##??#? | | ???????????????#?????? ""????????# """%="" #??### | | ????????????????????? ? ?? ???#?# !! #??# | | ????????????????????###+###?#????# #?## # | | ????????????????????# ########+######+##### # | | ????????????????#???# "" # | | ????????????#???????# T" ##### #### | | ??????????????????#?# #??## #??? | | ??????????????????#?# % # ###+###+##### #??# | | ???????????????#?#?### Y##?# #### #??# | | ?????????????????????# ;#?# #??# #### | | ?????????????????????# @#??# #??# + | | ????????#?????#??????# #??# #??###### | | ??????????????????##?# #?## #??????## | | ????????????????#?#?## #??# #?#?????# | | ????????????#??#???#?# #??# % #??#??## | | ??????????????#??##??# #?### ###########?#?#??# | | ???????????????????#?# ##?##"###????#??#?#????# | | ???#???#??????????#??# #####"######????#?#???## | | ?????###########?????# # #????#?#?????? | | ?????# #?#???# # #?#????#??#??? | | ?????# """ """ #?##??# # #?#??#???????? | | ?????# """ Y" #??#### # #????????##### | | ?????# """ """ #???#"" + #??##?#??# | | ???#?# #???#"" # ##??#????# | | ?????# #???#"T r # ##?#???## | | ?????# #??##"" # ##?##????# | | ???#?# ##??#"" ########+##????????# | | ????######+########### ######## ########### ! | | ????# +! | | ????# ########## ! | | ????# #????????##### | | ????##################################????????#?? | | ???????????????????#?????#????#?#?????????#?????? | | | | | +----------------------------------------------------+ Best States ------------- Heat Dissipation 25 Energy Generation 15 Energy Capacity 265 Matter Stores 300 Matter Capacity 300 Sight Range 16 Terrain Scan Range 16 Terrain Scan Density 10 Armor Coverage 100 Evasion (%) 40 Recoil Reduction 2 Item Schematics ----------------- None Robot Schematics ------------------ None Fabricated ------------ Nothing Alien Tech Used ----------------- None Achievements -------------- None Challenges ------------ None Game ------ Seed BombardmentSwordCoupler Manual? 0 Play Time 00:25:00 Cumulative 115.1 hours Start 2024.08.23 @ 23:04:01 End 2024.08.23 @ 23:28:22 Sessions 1 Manual Loads 0 Difficulty Rogue Special Mode None Game No. 98 Rogue 98 Adventurer 0 Explorer 0 Win Type - Total 0 Types 0/0/0/0/0/0/0/0/0 Lore% 51 Gallery% 59 Achievement% 48 Wizard Run 0 Options --------- Layout 2 ASCII 0 Keyboard 1 Movement Vi Keybinds 0 Fullscreen 1 Font 32/SmallcapsGlow Map View 77x44 Zoom Use 0% Tactical HUD 1 Map Filters NONE Filters NONE Steam 1 RUN: 0abb283f-95e1-4f12-9c6c-4cb2212f5172